fUST/lending_fUST_20250906
["ID","MTS","AMOUNT","RATE_DAILY","PERIOD"]
[383814728,1757127047382,-254.952377,0.00013698,2]
[383814730,1757127047393,-254.952377,0.00013698,2]
[383814732,1757127047402,-254.952377,0.00013698,2]
[383814734,1757127047411,-151.0,0.00013698,2]
[383814736,1757127047421,-254.952377,0.00013698,2]
[383814738,1757127047430,-151.0,0.00013698,2]
[383814740,1757127047439,-254.952377,0.00013698,2]
[383814742,1757127047448,-153.085669,0.00013698,2]
[383814744,1757127047457,-480.0,0.00013698,2]
[383814746,1757127047466,-254.952377,0.00013698,2]
[383814748,1757127047475,-254.952377,0.00013698,2]
[383814750,1757127047485,-480.0,0.00013698,2]
[383814752,1757127047495,-484.04635469,0.00013698,2]
[383814754,1757127047504,-151.0,0.00013698,2]
[383814756,1757127047514,-480.0,0.00013698,2]
[383814758,1757127047523,-153.880679,0.00013699,2]
[383814760,1757127047532,-151.0,0.00013699,2]
[383814762,1757127047540,-151.0,0.00013699,2]
[383814764,1757127047549,-151.0,0.00013699,2]
[383814766,1757127047559,-151.0,0.00013699,2]
[383814768,1757127047568,-151.0,0.00013699,2]
[383814769,1757127047578,-151.0,0.00013699,2]
[383814771,1757127047587,-4086.7268533,0.00013699,2]
[383814773,1757127047596,-723.718165,0.00013699,2]
[383814775,1757127047606,-219.210025,0.00013699,2]
[383814777,1757127047615,-1979.045754,0.00013699,2]
[383814779,1757127047624,-151.0,0.00013699,2]
[383814781,1757127047633,-151.0,0.00013699,2]
[383814783,1757127047642,-151.0,0.00013699,2]
[383814785,1757127047651,-151.0,0.00013699,2]
[383814787,1757127047660,-151.0,0.00013699,2]
[383814789,1757127047670,-151.0,0.00013699,2]
[383814791,1757127047681,-151.0,0.00013699,2]
[383814793,1757127047690,-151.0,0.00013699,2]
[383814795,1757127047699,-500.0,0.00013699,2]
[383814797,1757127047709,-151.0,0.000137,2]
[383814799,1757127047719,-151.0,0.000137,2]
[383814801,1757127047728,-168.0,0.00013718,2]
[383814803,1757127047738,-600.0,0.00013765,2]
[383814805,1757127047747,-500.0,0.00013771,2]
[383814807,1757127047756,-151.0,0.000138,2]
[383814809,1757127047765,-151.0,0.000138,2]
[383814811,1757127047775,-151.0,0.000138,2]
[383814813,1757127047784,-151.0,0.000139,2]
[383814814,1757127047793,-151.0,0.000139,2]
[383814816,1757127047803,-595.2157827,0.000139,2]
[383814818,1757127047813,-151.0,0.000139,2]
[383814820,1757127047822,-151.0,0.000139,2]
[383814822,1757127047831,-151.0,0.000139,2]
[383814824,1757127047840,-151.0,0.000139,2]
[383814826,1757127047850,-861.090156,0.000139,2]
[383814828,1757127047859,-160.0,0.00013928,2]
[383814830,1757127047867,-160.0,0.00013928,2]
[383814832,1757127047877,-160.0,0.00013928,2]
[383814834,1757127047885,-160.0,0.00013928,2]
[383814836,1757127047895,-160.0,0.00013928,2]
[383814838,1757127047904,-160.0,0.00013928,2]
[383814840,1757127047914,-203.21852024,0.00013928,2]
[383814842,1757127047923,-155.019658,0.00013946,2]
[383814843,1757127047932,-1790.5223145,0.00013961,2]
[383814845,1757127047942,-300.0,0.00013971,2]
[383814847,1757127047951,-300.0,0.00013971,2]
[383814849,1757127047961,-300.0,0.00013971,2]
[383814851,1757127047970,-300.0,0.00013971,2]
[383814853,1757127047980,-300.0,0.00013971,2]
[383814855,1757127047989,-300.0,0.00013971,2]
[383814857,1757127047998,-300.0,0.00013971,2]
[383814859,1757127048008,-300.0,0.00013971,2]
[383814861,1757127048017,-300.0,0.00013971,2]
[383814863,1757127048026,-300.0,0.00013971,2]
[383814865,1757127048036,-300.0,0.00013971,2]
[383814867,1757127048045,-300.0,0.00013971,2]
[383814869,1757127048056,-300.0,0.00013971,2]
[383814871,1757127048065,-300.0,0.00013971,2]
[383814873,1757127048075,-300.0,0.00013971,2]
[383814875,1757127048084,-467.74,0.00013971,2]
[383814877,1757127048093,-200.99911874,0.00013971,2]
[383814878,1757127048103,-175.2096525,0.00013972,2]
[383814880,1757127048112,-157.0,0.00013972,2]
[383814882,1757127048127,-157.0,0.00013972,2]
[383814890,1757127048224,-500.0,0.00013972,2]
[383814891,1757127048235,-157.0,0.00013972,2]
[383814892,1757127048245,-245.65814477,0.00013972,2]
[383814893,1757127048254,-481.73494056,0.00013972,2]
[383814894,1757127048264,-480.0,0.00013972,2]
[383814895,1757127048273,-481.57607331,0.00013972,2]
[383814896,1757127048283,-480.0,0.00013972,2]
[383814897,1757127048293,-480.93839701,0.00013972,2]
[383814898,1757127048303,-481.01063706,0.00013972,2]
[383814899,1757127048312,-481.04892226,0.00013972,2]
[383814900,1757127048322,-480.0,0.00013972,2]
[383814901,1757127048331,-480.0,0.00013972,2]
[383814902,1757127048341,-481.66237895,0.00013972,2]
[383814903,1757127048351,-480.0,0.00013972,2]
[383814904,1757127048360,-480.0,0.00013972,2]
[383814906,1757127048369,-412.62835186,0.00013972,2]
[383814908,1757127048379,-480.0,0.00013972,2]
[383814910,1757127048388,-480.0,0.00013972,2]
[383814912,1757127048397,-480.0,0.00013972,2]
[383814914,1757127048407,-480.0,0.00013972,2]
[383814916,1757127048416,-480.77852042,0.00013972,2]
[383814918,1757127048425,-480.0,0.00013972,2]
[383814920,1757127048435,-355.35455711,0.00013972,2]
[383814922,1757127048444,-480.0,0.00013972,2]
[383814924,1757127048454,-515.40489491,0.00013972,2]
[383814926,1757127048464,-480.0,0.00013972,2]
[383814928,1757127048473,-480.0,0.00013972,2]
[383814930,1757127048482,-480.0,0.00013972,2]
[383814932,1757127048492,-467.38732919,0.00013972,2]
[383814934,1757127048502,-480.0,0.00013972,2]
[383814936,1757127048511,-480.0,0.00013972,2]
[383814938,1757127048521,-480.0,0.00013972,2]
[383814940,1757127048530,-480.0,0.00013972,2]
[383814942,1757127048539,-199.24139442,0.00013972,2]
[383814944,1757127048549,-480.0,0.00013972,2]
[383814946,1757127048558,-480.0,0.00013972,2]
[383814948,1757127048568,-480.0,0.00013972,2]
[383814950,1757127048577,-482.62800926,0.00013972,2]
[383814952,1757127048587,-480.0,0.00013972,2]
[383814954,1757127048596,-480.0,0.00013972,2]
[383814956,1757127048606,-529.86110899,0.00013972,2]
[383814958,1757127048615,-480.0,0.00013972,2]
[383814960,1757127048624,-481.79542644,0.00013972,2]
[383814962,1757127048634,-480.0,0.00013972,2]
[383814964,1757127048644,-482.02343997,0.00013972,2]
[383814966,1757127048654,-480.0,0.00013972,2]
[383814968,1757127048663,-480.0,0.00013972,2]
[383814970,1757127048673,-482.8693828,0.00013972,2]
[383814972,1757127048683,-482.03336199,0.00013972,2]
[383814973,1757127048693,-320.15590067,0.00013972,2]
[383814975,1757127048703,-1004.19207732,0.00013972,2]
[383814977,1757127048712,-480.0,0.00013972,2]
[383814979,1757127048722,-480.0,0.00013972,2]
[383814981,1757127048732,-484.61719888,0.00013972,2]
[383814983,1757127048741,-484.63856224,0.00013972,2]
[383814985,1757127048750,-480.0,0.00013972,2]
[383814987,1757127048760,-482.68954653,0.00013972,2]
[383814989,1757127048770,-480.0,0.00013972,2]
[383814991,1757127048779,-480.0,0.00013972,2]
[383814993,1757127048788,-480.0,0.00013972,2]
[383814995,1757127048797,-336.38488409,0.00013972,2]
[383814997,1757127048807,-483.15200803,0.00013972,2]
[383814998,1757127048816,-480.0,0.00013972,2]
[383815000,1757127048826,-480.0,0.00013972,2]
[383815002,1757127048835,-185.71254069,0.00013972,2]
[383815004,1757127048845,-480.0,0.00013972,2]
[383815006,1757127048854,-481.01376722,0.00013972,2]
[383815008,1757127048864,-480.0,0.00013972,2]
[383815010,1757127048874,-491.61909584,0.00013972,2]
[383815012,1757127048884,-480.0,0.00013972,2]
[383815014,1757127048893,-480.0,0.00013972,2]
[383815016,1757127048903,-481.90787144,0.00013972,2]
[383815018,1757127048913,-167.09862619,0.00013972,2]
[383815020,1757127048922,-480.0,0.00013972,2]
[383815022,1757127048932,-480.0,0.00013972,2]
[383815024,1757127048942,-480.82285507,0.00013972,2]
[383815026,1757127048951,-481.29884787,0.00013972,2]
[383815028,1757127048961,-480.1750996,0.00013972,2]
[383815030,1757127048971,-480.0,0.00013972,2]
[383815032,1757127048981,-480.0,0.00013972,2]
[383815034,1757127048991,-480.0,0.00013972,2]
[383815036,1757127049000,-480.0,0.00013972,2]
[383815038,1757127049010,-480.0,0.00013972,2]
[383815040,1757127049020,-480.0,0.00013972,2]
[383815042,1757127049029,-481.28200937,0.00013972,2]
[383815044,1757127049038,-483.58544484,0.00013972,2]
[383815046,1757127049047,-480.0,0.00013972,2]
[383815048,1757127049057,-567.59001659,0.00013972,2]
[383815050,1757127049067,-480.0,0.00013972,2]
[383815052,1757127049077,-480.0,0.00013972,2]
[383815054,1757127049087,-480.0,0.00013972,2]
[383815056,1757127049096,-480.0,0.00013972,2]
[383815058,1757127049106,-480.0,0.00013972,2]
[383815060,1757127049116,-480.0,0.00013972,2]
[383815062,1757127049129,-480.0,0.00013972,2]
[383815064,1757127049139,-480.0,0.00013972,2]
[383815066,1757127049148,-480.0,0.00013972,2]
[383815068,1757127049159,-483.57389657,0.00013972,2]
[383815071,1757127049168,-480.0,0.00013972,2]
[383815072,1757127049178,-480.0,0.00013972,2]
[383815074,1757127049187,-480.0,0.00013972,2]
[383815076,1757127049197,-481.57847064,0.00013972,2]
[383815078,1757127049208,-480.0,0.00013972,2]
[383815080,1757127049217,-151.0,0.00013972,2]
[383815082,1757127049227,-151.0,0.00013972,2]
[383815084,1757127049236,-480.0,0.00013972,2]
[383815086,1757127049246,-480.0,0.00013972,2]
[383815088,1757127049255,-189.471751,0.00013972,2]
[383815090,1757127049265,-189.471751,0.00013972,2]
[383815092,1757127049275,-189.471751,0.00013972,2]
[383815095,1757127049285,-189.471751,0.00013972,2]
[383815097,1757127049294,-189.471751,0.00013972,2]
[383815099,1757127049303,-189.471751,0.00013972,2]
[383815100,1757127049313,-397.3366991,0.00013972,2]
[383815102,1757127049323,-151.0,0.00013972,2]
[383815104,1757127049332,-151.0,0.00013972,2]
[383815106,1757127049342,-480.0,0.00013972,2]
[383815108,1757127049351,-189.471751,0.00013972,2]
[383815110,1757127049363,-480.0,0.00013972,2]
[383815112,1757127049373,-189.471751,0.00013972,2]
[383815114,1757127049383,-480.0,0.00013972,2]
[383815116,1757127049393,-480.0,0.00013972,2]
[383815118,1757127049403,-480.0,0.00013972,2]
[383815120,1757127049413,-519.59043917,0.00013972,2]
[383815122,1757127049422,-483.40738805,0.00013972,2]
[383815124,1757127049432,-236.44006626,0.00013972,2]
[383815126,1757127049441,-480.0,0.00013972,2]
[383815128,1757127049451,-480.0,0.00013972,2]
[383815130,1757127049460,-371.51208648,0.00013972,2]
[383815132,1757127049470,-480.0,0.00013972,2]
[383815134,1757127049478,-318.94052838,0.00013972,2]
[383815136,1757127049488,-480.0,0.00013972,2]
[383815138,1757127049497,-480.0,0.00013972,2]
[383815140,1757127049507,-480.0,0.00013972,2]
[383815142,1757127049517,-480.0,0.00013972,2]
[383815144,1757127049527,-151.0,0.00013972,2]
[383815146,1757127049536,-151.0,0.00013972,2]
[383815148,1757127049546,-151.0,0.00013972,2]
[383815150,1757127049555,-482.80591018,0.00013972,2]
[383815152,1757127049564,-151.0,0.00013972,2]
[383815154,1757127049575,-252.020525,0.00013972,2]
[383815156,1757127049584,-480.0,0.00013972,2]
[383815158,1757127049594,-480.0,0.00013972,2]
[383815160,1757127049603,-480.0,0.00013972,2]
[383815162,1757127049612,-167.70871752,0.00013972,2]
[383815164,1757127049621,-480.0,0.00013972,2]
[383815166,1757127049630,-483.65217531,0.00013972,2]
[383815168,1757127049640,-480.0,0.00013972,2]
[383815170,1757127049649,-480.0,0.00013972,2]
[383815172,1757127049659,-245.88660548,0.00013972,2]
[383815174,1757127049668,-480.0,0.00013972,2]
[383815176,1757127049677,-628.23407974,0.00013972,2]
[383815178,1757127049687,-481.95034887,0.00013972,2]
[383815180,1757127049696,-480.0,0.00013972,2]
[383815182,1757127049705,-481.4007942,0.00013972,2]
[383815184,1757127049715,-480.0,0.00013972,2]
[383815186,1757127049724,-480.0,0.00013972,2]
[383815188,1757127049734,-480.0,0.00013972,2]
[383815190,1757127049743,-480.0,0.00013972,2]
[383815192,1757127049753,-480.0,0.00013972,2]
[383815194,1757127049762,-480.0,0.00013972,2]
[383815196,1757127049772,-151.0,0.00013972,2]
[383815198,1757127049781,-151.0,0.00013972,2]
[383815200,1757127049791,-480.0,0.00013972,2]
[383815202,1757127049801,-383.43997895,0.00013972,2]
[383815204,1757127049811,-480.0,0.00013972,2]
[383815206,1757127049819,-480.0,0.00013972,2]
[383815208,1757127049829,-480.0,0.00013972,2]
[383815209,1757127049838,-480.0,0.00013972,2]
[383815212,1757127049847,-480.0,0.00013972,2]
[383815214,1757127049857,-480.0,0.00013972,2]
[383815216,1757127049867,-480.0,0.00013972,2]
[383815218,1757127049876,-480.0,0.00013972,2]
[383815220,1757127049886,-480.0,0.00013972,2]
[383815222,1757127049895,-480.0,0.00013972,2]
[383815223,1757127049906,-500.0,0.00013972,2]
[383815226,1757127049916,-480.0,0.00013972,2]
[383815228,1757127049926,-437.94829271,0.00013972,2]
[383815229,1757127049936,-480.0,0.00013972,2]
[383815231,1757127049946,-480.0,0.00013972,2]
[383815233,1757127049957,-490.32980837,0.00013972,2]
[383815235,1757127049967,-485.91372658,0.00013972,2]
[383815237,1757127049976,-480.0,0.00013972,2]
[383815239,1757127049986,-480.0,0.00013972,2]
[383815250,1757127050079,-480.0,0.00013972,2]
[383815252,1757127050090,-484.53680964,0.00013972,2]
[383815254,1757127050099,-480.0,0.00013972,2]
[383815256,1757127050109,-268.57946047,0.00013972,2]
[383815258,1757127050119,-480.0,0.00013972,2]
[383815260,1757127050133,-480.0,0.00013972,2]
[383815262,1757127050142,-480.0,0.00013972,2]
[383815264,1757127050152,-480.0,0.00013972,2]
[383815266,1757127050162,-485.07863576,0.00013972,2]
[383815268,1757127050171,-481.77836839,0.00013972,2]
[383815270,1757127050181,-480.0,0.00013972,2]
[383815272,1757127050190,-480.0,0.00013972,2]
[383815274,1757127050202,-480.0,0.00013972,2]
[383815276,1757127050211,-480.0,0.00013972,2]
[383815278,1757127050221,-480.0,0.00013972,2]
[383815280,1757127050231,-499.27363521,0.00013972,2]
[383815281,1757127050241,-480.0,0.00013972,2]
[383815283,1757127050251,-480.0,0.00013972,2]
[383815286,1757127050261,-480.0,0.00013972,2]
[383815287,1757127050271,-480.0,0.00013972,2]
[383815289,1757127050280,-484.11960889,0.00013972,2]
[383815291,1757127050290,-151.0,0.00013972,2]
[383815293,1757127050299,-481.80626009,0.00013972,2]
[383815295,1757127050308,-151.0,0.00013972,2]
[383815297,1757127050317,-151.0,0.00013972,2]
[383815299,1757127050326,-151.0,0.00013972,2]
[383815301,1757127050337,-480.0,0.00013972,2]
[383815303,1757127050346,-151.0,0.00013972,2]
[383815305,1757127050357,-151.0,0.00013972,2]
[383815307,1757127050368,-480.0,0.00013972,2]
[383815309,1757127050378,-505.37246912,0.00013972,2]
[383815311,1757127050388,-480.0,0.00013972,2]
[383815313,1757127050397,-480.0,0.00013972,2]
[383815315,1757127050407,-480.0,0.00013972,2]
[383815317,1757127050416,-490.70640921,0.00013972,2]
[383815319,1757127050426,-484.57784512,0.00013972,2]
[383815321,1757127050436,-151.0,0.00013972,2]
[383815323,1757127050445,-151.0,0.00013972,2]
[383815325,1757127050455,-483.34758954,0.00013972,2]
[383815327,1757127050464,-480.0,0.00013972,2]
[383815329,1757127050474,-480.0,0.00013972,2]
[383815331,1757127050483,-481.39317428,0.00013972,2]
[383815332,1757127050492,-482.51886478,0.00013972,2]
[383815334,1757127050502,-480.0,0.00013972,2]
[383815336,1757127050511,-481.32164946,0.00013972,2]
[383815338,1757127050522,-483.72149345,0.00013972,2]
[383815340,1757127050532,-480.0,0.00013972,2]
[383815342,1757127050541,-480.0,0.00013972,2]
[383815344,1757127050550,-486.55325116,0.00013972,2]
[383815346,1757127050560,-480.0,0.00013972,2]
[383815348,1757127050569,-482.81919,0.00013972,2]
[383815350,1757127050578,-480.83565777,0.00013972,2]
[383815352,1757127050588,-480.0,0.00013972,2]
[383815354,1757127050597,-486.14455331,0.00013972,2]
[383815356,1757127050607,-480.0,0.00013972,2]
[383815357,1757127050616,-481.17798576,0.00013972,2]
[383815360,1757127050626,-490.40076421,0.00013972,2]
[383815362,1757127050636,-480.0,0.00013972,2]
[383815364,1757127050647,-480.0,0.00013972,2]
[383815366,1757127050658,-481.77880227,0.00013972,2]
[383815367,1757127050669,-480.0,0.00013972,2]
[383815369,1757127050678,-550.49519725,0.00013972,2]
[383815371,1757127050687,-480.0,0.00013972,2]
[383815373,1757127050696,-480.0,0.00013972,2]
[383815375,1757127050706,-489.38355964,0.00013972,2]
[383815376,1757127050714,-461.38620994,0.00013972,2]
[383815377,1757127050724,-480.0,0.00013972,2]
[383815378,1757127050733,-480.0,0.00013972,2]
[383815379,1757127050742,-480.0,0.00013972,2]
[383815380,1757127050750,-480.91483394,0.00013972,2]
[383815381,1757127050759,-480.0,0.00013972,2]
[383815382,1757127050768,-480.0,0.00013972,2]
[383815384,1757127050777,-480.0,0.00013972,2]
[383815385,1757127050786,-480.79726096,0.00013972,2]
[383815387,1757127050796,-480.0,0.00013972,2]
[383815389,1757127050805,-480.0,0.00013972,2]
[383815391,1757127050815,-480.0,0.00013972,2]
[383815393,1757127050824,-480.0,0.00013972,2]
[383815395,1757127050833,-480.0,0.00013972,2]
[383815397,1757127050843,-506.87410078,0.00013972,2]
[383815399,1757127050852,-482.02623718,0.00013972,2]
[383815401,1757127050862,-480.0,0.00013972,2]
[383815403,1757127050871,-480.0,0.00013972,2]
[383815405,1757127050880,-480.0,0.00013972,2]
[383815407,1757127050891,-480.0,0.00013972,2]
[383815410,1757127050907,-481.9527949,0.00013972,2]
[383815413,1757127050922,-480.0,0.00013972,2]
[383815415,1757127050935,-480.0,0.00013972,2]
[383815418,1757127050949,-480.0,0.00013972,2]
[383815420,1757127050963,-480.0,0.00013972,2]
[383815423,1757127050977,-483.92103037,0.00013972,2]
[383815425,1757127050992,-480.0,0.00013972,2]
[383815428,1757127051006,-480.0,0.00013972,2]
[383815430,1757127051019,-480.54072939,0.00013972,2]
[383815433,1757127051032,-483.45850826,0.00013972,2]
[383815435,1757127051046,-169.6638431,0.00013972,2]
[383815438,1757127051060,-486.97370712,0.00013972,2]
[383815440,1757127051073,-482.10836088,0.00013972,2]
[383815442,1757127051084,-480.0,0.00013972,2]
[383815444,1757127051096,-481.61196086,0.00013972,2]
[383815447,1757127051110,-480.0,0.00013972,2]
[383815449,1757127051127,-480.0,0.00013972,2]
[383815452,1757127051141,-480.0,0.00013972,2]
[383815454,1757127051156,-482.85508062,0.00013972,2]
[383815457,1757127051172,-480.0,0.00013972,2]
[383815459,1757127051184,-480.0,0.00013972,2]
[383815461,1757127051195,-480.0,0.00013972,2]
[383815464,1757127051212,-481.64997961,0.00013972,2]
[383815467,1757127051227,-481.39080992,0.00013972,2]
[383815469,1757127051239,-491.25138963,0.00013972,2]
[383815471,1757127051251,-480.0,0.00013972,2]
[383815474,1757127051265,-480.0,0.00013972,2]
[383815476,1757127051276,-480.0,0.00013972,2]
[383815478,1757127051288,-480.0,0.00013972,2]
[383815480,1757127051300,-482.90533493,0.00013972,2]
[383815483,1757127051313,-482.18458964,0.00013972,2]
[383815485,1757127051325,-482.63330895,0.00013972,2]
[383815487,1757127051337,-480.0,0.00013972,2]
[383815490,1757127051350,-483.40571759,0.00013972,2]
[383815492,1757127051362,-480.0,0.00013972,2]
[383815494,1757127051373,-497.26180915,0.00013972,2]
[383815496,1757127051386,-486.86930627,0.00013972,2]
[383815498,1757127051398,-487.8409849,0.00013972,2]
[383815501,1757127051410,-484.94359623,0.00013972,2]
[383815503,1757127051422,-483.28175647,0.00013972,2]
[383815505,1757127051434,-480.0,0.00013972,2]
[383815507,1757127051445,-480.0,0.00013972,2]
[383815510,1757127051458,-480.0,0.00013972,2]
[383815512,1757127051470,-491.46936969,0.00013972,2]
[383815514,1757127051483,-480.0,0.00013972,2]
[383815516,1757127051495,-480.0,0.00013972,2]
[383815519,1757127051506,-480.0,0.00013972,2]
[383815521,1757127051518,-481.52017868,0.00013972,2]
[383815523,1757127051530,-480.0,0.00013972,2]
[383815526,1757127051542,-480.0,0.00013972,2]
[383815527,1757127051553,-480.0,0.00013972,2]
[383815530,1757127051565,-480.0,0.00013972,2]
[383815532,1757127051577,-480.0,0.00013972,2]
[383815534,1757127051589,-480.0,0.00013972,2]
[383815537,1757127051601,-480.0,0.00013972,2]
[383815539,1757127051615,-286.00042216,0.00013972,2]
[383815541,1757127051628,-481.20200633,0.00013972,2]
[383815544,1757127051640,-482.03621985,0.00013972,2]
[383815546,1757127051652,-569.76292404,0.00013972,2]
[383815548,1757127051664,-480.0,0.00013972,2]
[383815551,1757127051676,-480.0,0.00013972,2]
[383815553,1757127051688,-468.12031959,0.00013972,2]
[383815555,1757127051700,-480.0,0.00013972,2]
[383815557,1757127051713,-480.0,0.00013972,2]
[383815560,1757127051726,-480.0,0.00013972,2]
[383815562,1757127051739,-481.71795782,0.00013972,2]
[383815565,1757127051752,-480.0,0.00013972,2]
[383815567,1757127051764,-480.0,0.00013972,2]
[383815569,1757127051777,-1347.12,0.00013972,2]
[383815572,1757127051789,-553.4,0.00013972,2]
[383815574,1757127051802,-443.22951419,0.00013972,2]
[383815576,1757127051814,-480.0,0.00013972,2]
[383815578,1757127051829,-480.0,0.00013972,2]
[383815580,1757127051842,-481.22094941,0.00013972,2]
[383815583,1757127051854,-480.0,0.00013972,2]
[383815585,1757127051866,-480.0,0.00013972,2]
[383815587,1757127051878,-480.0,0.00013972,2]
[383815589,1757127051890,-480.0,0.00013972,2]
[383815592,1757127051903,-480.0,0.00013972,2]
[383815594,1757127051915,-488.06396617,0.00013972,2]
[383815596,1757127051927,-480.0,0.00013972,2]
[383815599,1757127051942,-480.0,0.00013972,2]
[383815601,1757127051955,-1441.84,0.00013972,2]
[383815603,1757127051967,-480.0,0.00013972,2]
[383815618,1757127052110,-480.0,0.00013972,2]
[383815620,1757127052121,-482.43341599,0.00013972,2]
[383815622,1757127052133,-480.0,0.00013972,2]
[383815624,1757127052144,-485.1227262,0.00013972,2]
[383815626,1757127052153,-480.0,0.00013972,2]
[383815628,1757127052164,-485.58797557,0.00013972,2]
[383815630,1757127052175,-480.0,0.00013972,2]
[383815632,1757127052186,-482.05169517,0.00013972,2]
[383815634,1757127052196,-483.47251557,0.00013972,2]
[383815636,1757127052208,-480.0,0.00013972,2]
[383815638,1757127052218,-480.0,0.00013972,2]
[383815640,1757127052228,-484.64834256,0.00013972,2]
[383815642,1757127052237,-480.0,0.00013972,2]
[383815644,1757127052247,-422.26292979,0.00013972,2]
[383815646,1757127052257,-590.94,0.00013972,2]
[383815648,1757127052266,-480.0,0.00013972,2]
[383815650,1757127052276,-481.04001931,0.00013972,2]
[383815652,1757127052286,-480.0,0.00013972,2]
[383815654,1757127052296,-480.0,0.00013972,2]
[383815656,1757127052305,-480.0,0.00013972,2]
[383815658,1757127052315,-480.0,0.00013972,2]
[383815660,1757127052325,-164.29745292,0.00013972,2]
[383815662,1757127052335,-480.0,0.00013972,2]
[383815664,1757127052345,-495.06118208,0.00013972,2]
[383815666,1757127052355,-480.0,0.00013972,2]
[383815668,1757127052366,-231.02744279,0.00013972,2]
[383815670,1757127052377,-22433.06,0.00013972,2]
[383815672,1757127052387,-481.63731009,0.00013972,2]
[383815674,1757127052396,-480.0,0.00013972,2]
[383815676,1757127052405,-480.0,0.00013972,2]
[383815678,1757127052415,-480.0,0.00013972,2]
[383815680,1757127052425,-481.52682957,0.00013972,2]
[383815682,1757127052434,-480.0,0.00013972,2]
[383815684,1757127052443,-480.0,0.00013972,2]
[383815686,1757127052453,-480.0,0.00013972,2]
[383815688,1757127052462,-480.0,0.00013972,2]
[383815690,1757127052471,-480.0,0.00013972,2]
[383815692,1757127052480,-480.0,0.00013972,2]
[383815694,1757127052490,-480.0,0.00013972,2]
[383815696,1757127052502,-480.0,0.00013972,2]
[383815698,1757127052512,-480.0,0.00013972,2]
[383815700,1757127052522,-480.0,0.00013972,2]
[383815702,1757127052533,-481.59113547,0.00013972,2]
[383815704,1757127052542,-480.0,0.00013972,2]
[383815706,1757127052552,-480.0,0.00013972,2]
[383815708,1757127052561,-252.59615972,0.00013972,2]
[383815710,1757127052571,-480.0,0.00013972,2]
[383815712,1757127052580,-480.0,0.00013972,2]
[383815714,1757127052590,-854.63,0.00013972,2]
[383815716,1757127052599,-480.0,0.00013972,2]
[383815718,1757127052609,-486.11049117,0.00013972,2]
[383815720,1757127052619,-480.0,0.00013972,2]
[383815722,1757127052628,-480.0,0.00013972,2]
[383815724,1757127052638,-480.0,0.00013972,2]
[383815726,1757127052647,-480.29364274,0.00013972,2]
[383815727,1757127052657,-480.0,0.00013972,2]
[383815729,1757127052666,-480.0,0.00013972,2]
[383815731,1757127052676,-480.0,0.00013972,2]
[383815733,1757127052685,-480.0,0.00013972,2]
[383815735,1757127052695,-480.0,0.00013972,2]
[383815737,1757127052704,-480.0,0.00013972,2]
[383815739,1757127052716,-489.28580039,0.00013972,2]
[383815741,1757127052726,-590.07,0.00013972,2]
[383815743,1757127052736,-480.0,0.00013972,2]
[383815745,1757127052746,-484.88840081,0.00013972,2]
[383815747,1757127052756,-480.0,0.00013972,2]
[383815749,1757127052765,-480.0,0.00013972,2]